[Event "Titled Tuesday Blitz November 07 Early 2023"]
[White "Aradhya, Garg"]
[Black "Martinez Alcantara, Jose Eduardo"]
[WhiteFideId "25006746"]
[BlackFideId "3805662"]
[WhiteElo "2747"]
[BlackElo "3036"]
[Result "0-1"]
[Round "11"]
[TimeControl "180+1"]
[Date "2023.11.07"]
[WhiteClock "0:00:37"]
[BlackClock "0:02:05"]
[Board "14"]

1. d4 {[%clk 0:03:00]}  c5 {[%clk 0:03:00]} 2. d5 {[%clk 0:03:00]}  e5 {[%clk 0:03:00]} 3. e4 {[%clk 0:03:00]}  d6 {[%clk 0:03:01]} 4. Bb5+ {[%clk 0:03:00]}  Nd7 {[%clk 0:03:01]} 5. a4 {[%clk 0:03:01]}  Be7 {[%clk 0:03:02]} 6. Nf3 {[%clk 0:02:59]}  a6 {[%clk 0:03:03]} 7. Be2 {[%clk 0:02:59]}  Ngf6 {[%clk 0:03:03]} 8. Nc3 {[%clk 0:02:59]}  O-O {[%clk 0:03:04]} 9. O-O {[%clk 0:03:00]}  Re8 {[%clk 0:03:04]} 10. Nd2 {[%clk 0:02:56]}  b6 {[%clk 0:03:05]} 11. Nc4 {[%clk 0:02:55]}  Rb8 {[%clk 0:03:05]} 12. Ne3 {[%clk 0:02:54]}  g6 {[%clk 0:03:04]} 13. Bd3 {[%clk 0:02:54]}  Bf8 {[%clk 0:03:04]} 14. Qe2 {[%clk 0:02:54]}  Ra8 {[%clk 0:03:04]} 15. Nc4 {[%clk 0:02:47]}  Nh5 {[%clk 0:03:04]} 16. g3 {[%clk 0:02:46]}  Qc7 {[%clk 0:03:05]} 17. Be3 {[%clk 0:02:40]}  Rb8 {[%clk 0:03:01]} 18. Nd2 {[%clk 0:02:38]}  Ra8 {[%clk 0:03:02]} 19. Rfb1 {[%clk 0:02:34]}  Ng7 {[%clk 0:02:56]} 20. Nd1 {[%clk 0:02:26]}  f5 {[%clk 0:02:53]} 21. f3 {[%clk 0:02:27]}  Nf6 {[%clk 0:02:54]} 22. b4 {[%clk 0:02:25]}  f4 {[%clk 0:02:54]} 23. Bf2 {[%clk 0:02:16]}  fxg3 {[%clk 0:02:54]} 24. hxg3 {[%clk 0:02:16]}  h5 {[%clk 0:02:52]} 25. bxc5 {[%clk 0:02:16]}  bxc5 {[%clk 0:02:53]} 26. Nc4 {[%clk 0:02:15]}  h4 {[%clk 0:02:53]} 27. g4 {[%clk 0:02:10]}  Be7 {[%clk 0:02:38]} 28. Nb6 {[%clk 0:01:43]}  Ra7 {[%clk 0:02:37]} 29. Nxc8 {[%clk 0:01:43]}  Qxc8 {[%clk 0:02:38]} 30. Bxh4 {[%clk 0:01:32]}  Nfh5 {[%clk 0:02:37]} 31. gxh5 {[%clk 0:01:21]}  Bxh4 {[%clk 0:02:37]} 32. hxg6 {[%clk 0:01:22]}  Nh5 {[%clk 0:02:31]} 33. Qh2 {[%clk 0:01:20]}  Qd8 {[%clk 0:02:31]} 34. Ne3 {[%clk 0:01:13]}  Qg5+ {[%clk 0:02:28]} 35. Ng4 {[%clk 0:01:13]}  Rg7 {[%clk 0:02:23]} 36. Kh1 {[%clk 0:01:00]}  Ng3+ {[%clk 0:02:13]} 37. Kg2 {[%clk 0:00:58]}  Rf8 {[%clk 0:02:12]} 38. Rg1 {[%clk 0:00:42]}  Rxg6 {[%clk 0:02:11]} 39. Rad1 {[%clk 0:00:42]}  Rxf3 {[%clk 0:02:08]} 40. Kxf3 {[%clk 0:00:40]}  Qxg4+ {[%clk 0:02:08]} 41. Kg2 {[%clk 0:00:40]}  Nf1+ {[%clk 0:02:01]} 42. Kh1 {[%clk 0:00:36]}  Qf3+ {[%clk 0:01:57]} 43. Qg2 {[%clk 0:00:36]}  Rxg2 {[%clk 0:01:57]} 44. Rxg2+ {[%clk 0:00:37]}  Ng3+ {[%clk 0:01:58]} 45. Kh2 {[%clk 0:00:37]}  Qxd1 {[%clk 0:01:58]} 46. Rxg3+ {[%clk 0:00:38]}  Bxg3+ {[%clk 0:01:59]} 47. Kxg3 {[%clk 0:00:39]}  a5 {[%clk 0:02:00]} 48. Kh4 {[%clk 0:00:38]}  Kg7 {[%clk 0:02:00]} 49. Kg5 {[%clk 0:00:38]}  Qf3 {[%clk 0:02:00]} 50. Kh4 {[%clk 0:00:38]}  Kh6 {[%clk 0:02:00]} 51. Bb5 {[%clk 0:00:38]}  Qxe4+ {[%clk 0:02:00]} 52. Kg3 {[%clk 0:00:39]}  Qf4+ {[%clk 0:02:00]} 53. Kh3 {[%clk 0:00:38]}  Kg5 {[%clk 0:02:01]} 54. Bd7 {[%clk 0:00:38]}  e4 {[%clk 0:02:01]} 55. Be6 {[%clk 0:00:37]}  e3 {[%clk 0:02:02]} 56. Bd7 {[%clk 0:00:38]}  Qf2 {[%clk 0:02:03]} 57. Bb5 {[%clk 0:00:38]}  e2 {[%clk 0:02:04]} 58. Bxe2 {[%clk 0:00:38]}  Kf4 {[%clk 0:02:04]} 59. Bc4 {[%clk 0:00:37]}  Qg3# {[%clk 0:02:05]} 0-1


[Site "https://www.chess.com"]

[Event "Titled Tuesday Blitz November 07 Early 2023"]
[White "Elsa167"]
[Black "elprimo2012mortis"]
[WhiteElo "2976"]
[BlackElo "2790"]
[Result "1-0"]
[Round "11"]
[TimeControl "180+1"]
[Date "2023.11.07"]
[WhiteClock "0:00:16"]
[BlackClock "0:00:02"]
[Board "15"]

1. e4 {[%clk 0:02:58]}  c6 {[%clk 0:02:59]} 2. d4 {[%clk 0:02:58]}  d5 {[%clk 0:03:00]} 3. exd5 {[%clk 0:02:58]}  cxd5 {[%clk 0:03:01]} 4. Bd3 {[%clk 0:02:59]}  Nf6 {[%clk 0:03:00]} 5. c3 {[%clk 0:02:58]}  Bg4 {[%clk 0:02:57]} 6. Ne2 {[%clk 0:02:55]}  e6 {[%clk 0:02:55]} 7. f3 {[%clk 0:02:53]}  Bh5 {[%clk 0:02:54]} 8. Nf4 {[%clk 0:02:48]}  Bg6 {[%clk 0:02:54]} 9. Nxg6 {[%clk 0:02:49]}  hxg6 {[%clk 0:02:55]} 10. f4 {[%clk 0:02:48]}  Nc6 {[%clk 0:02:49]} 11. Qf3 {[%clk 0:02:48]}  Bd6 {[%clk 0:02:47]} 12. Be3 {[%clk 0:02:46]}  Qb6 {[%clk 0:02:44]} 13. Qe2 {[%clk 0:02:29]}  Qc7 {[%clk 0:02:38]} 14. g3 {[%clk 0:02:28]}  a6 {[%clk 0:02:28]} 15. Nd2 {[%clk 0:02:28]}  Ne7 {[%clk 0:02:25]} 16. Nf3 {[%clk 0:02:24]}  Nf5 {[%clk 0:02:25]} 17. Bf2 {[%clk 0:02:22]}  Ng4 {[%clk 0:02:23]} 18. O-O-O {[%clk 0:02:02]}  Nxf2 {[%clk 0:02:09]} 19. Qxf2 {[%clk 0:02:03]}  b5 {[%clk 0:02:06]} 20. Kb1 {[%clk 0:02:01]}  b4 {[%clk 0:01:51]} 21. Rc1 {[%clk 0:02:01]}  Qb7 {[%clk 0:01:44]} 22. c4 {[%clk 0:01:49]}  dxc4 {[%clk 0:01:44]} 23. Rxc4 {[%clk 0:01:50]}  b3 {[%clk 0:01:22]} 24. a3 {[%clk 0:01:43]}  O-O {[%clk 0:01:12]} 25. Rhc1 {[%clk 0:01:36]}  Rac8 {[%clk 0:01:07]} 26. g4 {[%clk 0:01:09]}  Bxf4 {[%clk 0:00:45]} 27. gxf5 {[%clk 0:00:58]}  Bxc1 {[%clk 0:00:45]} 28. Rxc1 {[%clk 0:00:58]}  Rxc1+ {[%clk 0:00:45]} 29. Kxc1 {[%clk 0:00:59]}  Rc8+ {[%clk 0:00:44]} 30. Kd1 {[%clk 0:00:49]}  gxf5 {[%clk 0:00:37]} 31. Qe3 {[%clk 0:00:43]}  a5 {[%clk 0:00:26]} 32. h4 {[%clk 0:00:43]}  a4 {[%clk 0:00:24]} 33. h5 {[%clk 0:00:44]}  Qd5 {[%clk 0:00:15]} 34. Ke2 {[%clk 0:00:42]}  Rc2+ {[%clk 0:00:08]} 35. Bxc2 {[%clk 0:00:39]}  bxc2 {[%clk 0:00:09]} 36. Kd2 {[%clk 0:00:30]}  f4 {[%clk 0:00:06]} 37. Qxf4 {[%clk 0:00:25]}  Qc4 {[%clk 0:00:06]} 38. Qb8+ {[%clk 0:00:14]}  Kh7 {[%clk 0:00:06]} 39. Ng5+ {[%clk 0:00:15]}  Kh6 {[%clk 0:00:06]} 40. Nxf7+ {[%clk 0:00:16]}  Kh7 {[%clk 0:00:02]} 41. Qh8# {[%clk 0:00:16]} 1-0


[Site "https://www.chess.com"]

[Event "Titled Tuesday Blitz November 07 Early 2023"]
[White "Makhnev, Denis"]
[Black "Sattarov, Bobir"]
[WhiteFideId "13707647"]
[BlackFideId "14203081"]
[WhiteElo "2924"]
[BlackElo "2774"]
[Result "1-0"]
[Round "11"]
[TimeControl "180+1"]
[Date "2023.11.07"]
[WhiteClock "0:00:58"]
[BlackClock "0:00:00"]
[Board "16"]

1. d4 {[%clk 0:02:51]}  Nf6 {[%clk 0:02:59]} 2. Nf3 {[%clk 0:02:52]}  c5 {[%clk 0:02:57]} 3. d5 {[%clk 0:02:52]}  d6 {[%clk 0:02:54]} 4. Nc3 {[%clk 0:02:51]}  e5 {[%clk 0:02:54]} 5. e4 {[%clk 0:02:51]}  Be7 {[%clk 0:02:53]} 6. Bb5+ {[%clk 0:02:52]}  Nbd7 {[%clk 0:02:52]} 7. a4 {[%clk 0:02:52]}  h6 {[%clk 0:02:45]} 8. Be2 {[%clk 0:02:49]}  g5 {[%clk 0:02:38]} 9. Nd2 {[%clk 0:02:49]}  Nf8 {[%clk 0:02:38]} 10. Nc4 {[%clk 0:02:49]}  Ng6 {[%clk 0:02:38]} 11. g3 {[%clk 0:02:49]}  Bd7 {[%clk 0:02:29]} 12. Ne3 {[%clk 0:02:49]}  a6 {[%clk 0:02:26]} 13. a5 {[%clk 0:02:36]}  Kf8 {[%clk 0:02:12]} 14. b3 {[%clk 0:02:33]}  Qb8 {[%clk 0:01:58]} 15. Qd3 {[%clk 0:02:31]}  Bd8 {[%clk 0:01:57]} 16. Bd2 {[%clk 0:01:57]}  Bc7 {[%clk 0:01:54]} 17. Ncd1 {[%clk 0:01:57]}  Qd8 {[%clk 0:01:37]} 18. Nb2 {[%clk 0:01:57]}  Bb5 {[%clk 0:01:24]} 19. Nbc4 {[%clk 0:01:52]}  Ne8 {[%clk 0:01:16]} 20. Kd1 {[%clk 0:01:43]}  Ng7 {[%clk 0:01:15]} 21. Kc1 {[%clk 0:01:43]}  Qd7 {[%clk 0:01:12]} 22. Bg4 {[%clk 0:01:30]}  Qd8 {[%clk 0:01:11]} 23. Kb2 {[%clk 0:01:31]}  h5 {[%clk 0:01:10]} 24. Be2 {[%clk 0:01:31]}  h4 {[%clk 0:01:07]} 25. Bg4 {[%clk 0:01:28]}  Bd7 {[%clk 0:01:00]} 26. Qe2 {[%clk 0:01:28]}  Ne8 {[%clk 0:00:52]} 27. Qf3 {[%clk 0:01:20]}  Ng7 {[%clk 0:00:42]} 28. Nf5 {[%clk 0:01:13]}  Qf6 {[%clk 0:00:30]} 29. Nfxd6 {[%clk 0:01:10]}  Qxf3 {[%clk 0:00:27]} 30. Bxf3 {[%clk 0:01:11]}  g4 {[%clk 0:00:19]} 31. Be2 {[%clk 0:01:10]}  Rb8 {[%clk 0:00:19]} 32. Be3 {[%clk 0:01:09]}  f5 {[%clk 0:00:16]} 33. Bxc5 {[%clk 0:01:05]}  Kg8 {[%clk 0:00:15]} 34. Nb6 {[%clk 0:00:59]}  Bxb6 {[%clk 0:00:11]} 35. Bxb6 {[%clk 0:01:00]}  f4 {[%clk 0:00:10]} 36. Bc7 {[%clk 0:00:58]}  Rf8 {[%clk 0:00:09]} 37. Nxb7 {[%clk 0:00:59]}  fxg3 {[%clk 0:00:07]} 38. fxg3 {[%clk 0:00:59]}  Rf2 {[%clk 0:00:07]} 39. Bxa6 {[%clk 0:00:59]}  Ne8 {[%clk 0:00:04]} 40. Bb6 {[%clk 0:00:58]}  Rg2 {[%clk 0:00:04]} 41. Bc4 {[%clk 0:00:58]}  Nf6 {[%clk 0:00:03]} 42. a6 {[%clk 0:00:57]}  Kg7 {[%clk 0:00:02]} 43. Nc5 {[%clk 0:00:57]}  Be8 {[%clk 0:00:01]} 44. a7 {[%clk 0:00:58]}  Bf7 {[%clk 0:00:02]} 45. a8=Q {[%clk 0:00:58]}  Rxa8 {[%clk 0:00:02]} 46. Rxa8 {[%clk 0:00:58]}  h3 {[%clk 0:00:00]} 47. Ra7 {[%clk 0:00:58]} 1-0


[Site "https://www.chess.com"]

[Event "Titled Tuesday Blitz November 07 Early 2023"]
[White "Roebers, Eline"]
[Black "mind1mover"]
[WhiteFideId "1058401"]
[WhiteElo "2611"]
[BlackElo "2827"]
[Result "0-1"]
[Round "11"]
[TimeControl "180+1"]
[Date "2023.11.07"]
[WhiteClock "0:00:12"]
[BlackClock "0:00:05"]
[Board "20"]

1. e4 {[%clk 0:03:00]}  Nc6 {[%clk 0:03:00]} 2. Nf3 {[%clk 0:02:59]}  d6 {[%clk 0:03:00]} 3. Nc3 {[%clk 0:02:57]}  Nf6 {[%clk 0:03:01]} 4. d4 {[%clk 0:02:57]}  g6 {[%clk 0:03:01]} 5. h3 {[%clk 0:02:56]}  a6 {[%clk 0:03:02]} 6. Be3 {[%clk 0:02:56]}  b5 {[%clk 0:03:02]} 7. Bd3 {[%clk 0:02:55]}  Bb7 {[%clk 0:03:02]} 8. a4 {[%clk 0:02:54]}  b4 {[%clk 0:02:57]} 9. Ne2 {[%clk 0:02:54]}  Na5 {[%clk 0:02:45]} 10. Nd2 {[%clk 0:02:51]}  Bg7 {[%clk 0:02:40]} 11. c3 {[%clk 0:02:42]}  bxc3 {[%clk 0:02:37]} 12. bxc3 {[%clk 0:02:43]}  O-O {[%clk 0:02:30]} 13. O-O {[%clk 0:02:42]}  Nd7 {[%clk 0:02:26]} 14. Rb1 {[%clk 0:02:38]}  Rb8 {[%clk 0:02:24]} 15. f4 {[%clk 0:02:35]}  e5 {[%clk 0:01:56]} 16. f5 {[%clk 0:02:22]}  exd4 {[%clk 0:01:44]} 17. cxd4 {[%clk 0:02:20]}  c5 {[%clk 0:01:44]} 18. Qe1 {[%clk 0:02:09]}  Nc6 {[%clk 0:01:39]} 19. d5 {[%clk 0:02:04]}  Nb4 {[%clk 0:01:39]} 20. Bc4 {[%clk 0:01:57]}  Nc2 {[%clk 0:01:26]} 21. Qf2 {[%clk 0:01:52]}  Nxe3 {[%clk 0:01:26]} 22. Qxe3 {[%clk 0:01:53]}  Ne5 {[%clk 0:01:15]} 23. Qg3 {[%clk 0:01:49]}  Qa5 {[%clk 0:01:07]} 24. Rfd1 {[%clk 0:01:27]}  Qxa4 {[%clk 0:00:57]} 25. Bb3 {[%clk 0:01:20]}  Qa3 {[%clk 0:00:56]} 26. h4 {[%clk 0:01:12]}  Kh8 {[%clk 0:00:42]} 27. h5 {[%clk 0:01:08]}  Bh6 {[%clk 0:00:23]} 28. Qh4 {[%clk 0:00:59]}  Be3+ {[%clk 0:00:22]} 29. Kh1 {[%clk 0:00:57]}  g5 {[%clk 0:00:18]} 30. Qg3 {[%clk 0:00:54]}  Bxd2 {[%clk 0:00:18]} 31. Rxd2 {[%clk 0:00:55]}  f6 {[%clk 0:00:16]} 32. Ra2 {[%clk 0:00:52]}  Qb4 {[%clk 0:00:14]} 33. Bc2 {[%clk 0:00:50]}  Qc4 {[%clk 0:00:09]} 34. Nc1 {[%clk 0:00:35]}  Ba8 {[%clk 0:00:08]} 35. Rb3 {[%clk 0:00:32]}  Rxb3 {[%clk 0:00:08]} 36. Nxb3 {[%clk 0:00:32]}  Rb8 {[%clk 0:00:07]} 37. Kh2 {[%clk 0:00:19]}  Qe2 {[%clk 0:00:04]} 38. Qh3 {[%clk 0:00:15]}  Ng4+ {[%clk 0:00:04]} 39. Kg3 {[%clk 0:00:12]}  Qf2+ {[%clk 0:00:04]} 40. Kxg4 {[%clk 0:00:12]}  Qf4# {[%clk 0:00:05]} 0-1


[Site "https://www.chess.com"]

[Event "Titled Tuesday Blitz November 07 Early 2023"]
[White "Shuvalov, Evgenij"]
[Black "Gharibyan, Mamikon"]
[WhiteFideId "4187237"]
[BlackFideId "13308300"]
[WhiteElo "2507"]
[BlackElo "2806"]
[Result "0-1"]
[Round "11"]
[TimeControl "180+1"]
[Date "2023.11.07"]
[WhiteClock "0:00:31"]
[BlackClock "0:01:12"]
[Board "23"]

1. d4 {[%clk 0:03:00]}  Nf6 {[%clk 0:02:57]} 2. c4 {[%clk 0:03:00]}  e6 {[%clk 0:02:57]} 3. Nc3 {[%clk 0:03:00]}  Bb4 {[%clk 0:02:57]} 4. e3 {[%clk 0:03:00]}  O-O {[%clk 0:02:56]} 5. a3 {[%clk 0:02:59]}  Bxc3+ {[%clk 0:02:52]} 6. bxc3 {[%clk 0:03:00]}  c5 {[%clk 0:02:52]} 7. Ne2 {[%clk 0:03:00]}  d5 {[%clk 0:02:47]} 8. cxd5 {[%clk 0:02:58]}  exd5 {[%clk 0:02:46]} 9. Ng3 {[%clk 0:02:58]}  Re8 {[%clk 0:02:31]} 10. Bd3 {[%clk 0:02:49]}  b6 {[%clk 0:02:30]} 11. O-O {[%clk 0:02:47]}  Ba6 {[%clk 0:02:30]} 12. f3 {[%clk 0:02:47]}  Bxd3 {[%clk 0:02:24]} 13. Qxd3 {[%clk 0:02:48]}  Nc6 {[%clk 0:02:25]} 14. Bb2 {[%clk 0:02:46]}  Rc8 {[%clk 0:02:20]} 15. e4 {[%clk 0:02:40]}  cxd4 {[%clk 0:02:17]} 16. cxd4 {[%clk 0:02:39]}  dxe4 {[%clk 0:02:18]} 17. fxe4 {[%clk 0:02:40]}  Ne5 {[%clk 0:02:17]} 18. Qd1 {[%clk 0:02:28]}  Nc4 {[%clk 0:02:14]} 19. Bc1 {[%clk 0:01:49]}  Nxe4 {[%clk 0:02:11]} 20. Nf5 {[%clk 0:01:30]}  Ncd6 {[%clk 0:02:02]} 21. Nh6+ {[%clk 0:01:13]}  gxh6 {[%clk 0:01:55]} 22. Bxh6 {[%clk 0:01:14]}  Qh4 {[%clk 0:01:50]} 23. Bf4 {[%clk 0:01:04]}  Re6 {[%clk 0:01:49]} 24. Rc1 {[%clk 0:01:01]}  Nc3 {[%clk 0:01:38]} 25. Qf3 {[%clk 0:00:46]}  Ne2+ {[%clk 0:01:34]} 26. Kh1 {[%clk 0:00:41]}  Rxc1 {[%clk 0:01:14]} 27. Bxc1 {[%clk 0:00:37]}  Nxc1 {[%clk 0:01:13]} 28. g3 {[%clk 0:00:33]}  Qe4 {[%clk 0:01:11]} 29. Qxe4 {[%clk 0:00:33]}  Rxe4 {[%clk 0:01:11]} 30. Rxc1 {[%clk 0:00:31]}  Rxd4 {[%clk 0:01:12]} 0-1


[Site "https://www.chess.com"]

[Event "Titled Tuesday Blitz November 07 Early 2023"]
[White "Deac, Bogdan-Daniel"]
[Black "GaiozNigalidze"]
[WhiteFideId "1226380"]
[WhiteElo "2973"]
[BlackElo "2725"]
[Result "1-0"]
[Round "11"]
[TimeControl "180+1"]
[Date "2023.11.07"]
[WhiteClock "0:00:41"]
[BlackClock "0:00:16"]
[Board "24"]

1. d4 {[%clk 0:03:00]}  Nf6 {[%clk 0:02:56]} 2. Nf3 {[%clk 0:03:01]}  c5 {[%clk 0:02:55]} 3. d5 {[%clk 0:03:01]}  b5 {[%clk 0:02:55]} 4. c4 {[%clk 0:03:00]}  Qa5+ {[%clk 0:02:53]} 5. Bd2 {[%clk 0:02:53]}  b4 {[%clk 0:02:53]} 6. Qc2 {[%clk 0:02:51]}  g6 {[%clk 0:02:51]} 7. a3 {[%clk 0:02:45]}  Bg7 {[%clk 0:02:48]} 8. e4 {[%clk 0:02:45]}  d6 {[%clk 0:02:48]} 9. h3 {[%clk 0:02:46]}  O-O {[%clk 0:02:47]} 10. Bd3 {[%clk 0:02:46]}  Nbd7 {[%clk 0:02:39]} 11. O-O {[%clk 0:02:44]}  Rb8 {[%clk 0:02:39]} 12. Re1 {[%clk 0:02:42]}  Ne8 {[%clk 0:02:28]} 13. Ra2 {[%clk 0:02:15]}  b3 {[%clk 0:01:59]} 14. Bxa5 {[%clk 0:02:12]}  bxc2 {[%clk 0:01:59]} 15. Bxc2 {[%clk 0:02:13]}  Rxb2 {[%clk 0:02:00]} 16. Rxb2 {[%clk 0:02:13]}  Bxb2 {[%clk 0:02:01]} 17. Nc3 {[%clk 0:02:07]}  Nef6 {[%clk 0:01:51]} 18. Rb1 {[%clk 0:01:53]}  Bxa3 {[%clk 0:01:50]} 19. Nb5 {[%clk 0:01:53]}  Bb4 {[%clk 0:01:50]} 20. Bxb4 {[%clk 0:01:53]}  cxb4 {[%clk 0:01:51]} 21. Nxa7 {[%clk 0:01:54]}  Nc5 {[%clk 0:01:50]} 22. e5 {[%clk 0:01:17]}  dxe5 {[%clk 0:01:44]} 23. Nxe5 {[%clk 0:01:17]}  b3 {[%clk 0:01:44]} 24. Nxc8 {[%clk 0:01:17]}  Rxc8 {[%clk 0:01:25]} 25. Bxb3 {[%clk 0:01:17]}  Rb8 {[%clk 0:01:24]} 26. Bc2 {[%clk 0:01:16]}  Rxb1+ {[%clk 0:01:23]} 27. Bxb1 {[%clk 0:01:16]}  Ne8 {[%clk 0:01:23]} 28. Nd3 {[%clk 0:01:10]}  Nxd3 {[%clk 0:01:18]} 29. Bxd3 {[%clk 0:01:11]}  Nc7 {[%clk 0:01:19]} 30. f4 {[%clk 0:01:07]}  Kf8 {[%clk 0:01:13]} 31. Kf2 {[%clk 0:01:06]}  Ke8 {[%clk 0:01:13]} 32. Ke3 {[%clk 0:01:05]}  Kd7 {[%clk 0:01:12]} 33. Kd4 {[%clk 0:01:05]}  e6 {[%clk 0:01:12]} 34. Ke5 {[%clk 0:01:00]}  exd5 {[%clk 0:00:58]} 35. cxd5 {[%clk 0:01:01]}  f6+ {[%clk 0:00:59]} 36. Kxf6 {[%clk 0:00:56]}  Nxd5+ {[%clk 0:01:00]} 37. Kg5 {[%clk 0:00:55]}  Ne3 {[%clk 0:00:49]} 38. g3 {[%clk 0:00:43]}  Ke7 {[%clk 0:00:46]} 39. Kh6 {[%clk 0:00:42]}  Kf6 {[%clk 0:00:16]} 40. h4 {[%clk 0:00:41]} 1-0


[Site "https://www.chess.com"]

[Event "Titled Tuesday Blitz November 07 Early 2023"]
[White "Baskakov, Egor"]
[Black "Perdomo, Leandro"]
[WhiteFideId "24197866"]
[BlackFideId "109746"]
[WhiteElo "2905"]
[BlackElo "2719"]
[Result "0-1"]
[Round "11"]
[TimeControl "180+1"]
[Date "2023.11.07"]
[WhiteClock "0:00:05"]
[BlackClock "0:00:26"]
[Board "25"]

1. e4 {[%clk 0:03:00]}  e5 {[%clk 0:02:40]} 2. Nc3 {[%clk 0:03:00]}  Nc6 {[%clk 0:02:41]} 3. g3 {[%clk 0:03:00]}  Nf6 {[%clk 0:02:41]} 4. Bg2 {[%clk 0:03:01]}  Bc5 {[%clk 0:02:41]} 5. h3 {[%clk 0:03:00]}  d6 {[%clk 0:02:41]} 6. Nge2 {[%clk 0:03:00]}  h6 {[%clk 0:02:39]} 7. d3 {[%clk 0:03:01]}  a6 {[%clk 0:02:40]} 8. O-O {[%clk 0:03:00]}  Be6 {[%clk 0:02:39]} 9. Nd5 {[%clk 0:03:00]}  Bxd5 {[%clk 0:02:39]} 10. exd5 {[%clk 0:03:00]}  Ne7 {[%clk 0:02:40]} 11. c4 {[%clk 0:03:01]}  Nf5 {[%clk 0:02:37]} 12. Kh2 {[%clk 0:03:01]}  Qd7 {[%clk 0:02:32]} 13. Rb1 {[%clk 0:02:59]}  a5 {[%clk 0:02:31]} 14. f4 {[%clk 0:02:29]}  h5 {[%clk 0:02:23]} 15. d4 {[%clk 0:01:29]}  exd4 {[%clk 0:02:10]} 16. Qd3 {[%clk 0:01:26]}  O-O-O {[%clk 0:02:02]} 17. Bd2 {[%clk 0:01:25]}  Rde8 {[%clk 0:01:58]} 18. b4 {[%clk 0:01:20]}  axb4 {[%clk 0:01:56]} 19. Bxb4 {[%clk 0:01:21]}  Re3 {[%clk 0:01:55]} 20. Qd2 {[%clk 0:01:19]}  Ng4+ {[%clk 0:01:51]} 21. hxg4 {[%clk 0:00:59]}  hxg4+ {[%clk 0:01:52]} 22. Kg1 {[%clk 0:00:58]}  Rxe2 {[%clk 0:01:52]} 23. Qd3 {[%clk 0:00:58]}  Re3 {[%clk 0:01:34]} 24. Qd2 {[%clk 0:00:57]}  Nxg3 {[%clk 0:01:25]} 25. Rf2 {[%clk 0:00:37]}  Qf5 {[%clk 0:01:20]} 26. Qb2 {[%clk 0:00:24]}  Qh5 {[%clk 0:01:15]} 27. Rd2 {[%clk 0:00:17]}  Qh2+ {[%clk 0:01:13]} 28. Kf2 {[%clk 0:00:17]}  Ne4+ {[%clk 0:01:12]} 29. Kf1 {[%clk 0:00:18]}  Qxf4+ {[%clk 0:01:08]} 30. Kg1 {[%clk 0:00:16]}  Qh2+ {[%clk 0:00:41]} 31. Kf1 {[%clk 0:00:16]}  Bxb4 {[%clk 0:00:26]} 32. Qxb4 {[%clk 0:00:10]}  Ng3+ {[%clk 0:00:25]} 33. Kf2 {[%clk 0:00:09]}  Rf3+ {[%clk 0:00:25]} 34. Ke1 {[%clk 0:00:05]}  Qg1+ {[%clk 0:00:26]} 0-1


[Site "https://www.chess.com"]

[Event "Titled Tuesday Blitz November 07 Early 2023"]
[White "Suyarov, Mukhammadzokhid"]
[Black "Atakhan, Abtin"]
[WhiteFideId "14210495"]
[BlackFideId "22502203"]
[WhiteElo "2820"]
[BlackElo "2730"]
[Result "1-0"]
[Round "11"]
[TimeControl "180+1"]
[Date "2023.11.07"]
[WhiteClock "0:01:35"]
[BlackClock "0:00:54"]
[Board "29"]

1. d4 {[%clk 0:03:00]}  Nf6 {[%clk 0:03:00]} 2. Nc3 {[%clk 0:03:00]}  d5 {[%clk 0:03:00]} 3. Bf4 {[%clk 0:03:00]}  e6 {[%clk 0:03:00]} 4. Nb5 {[%clk 0:03:00]}  Na6 {[%clk 0:03:00]} 5. e3 {[%clk 0:03:00]}  c6 {[%clk 0:02:55]} 6. Nc3 {[%clk 0:02:59]}  Qa5 {[%clk 0:02:55]} 7. Bd3 {[%clk 0:02:55]}  Bb4 {[%clk 0:02:46]} 8. Ne2 {[%clk 0:02:54]}  c5 {[%clk 0:02:40]} 9. a3 {[%clk 0:02:54]}  Bxc3+ {[%clk 0:02:39]} 10. Nxc3 {[%clk 0:02:54]}  c4 {[%clk 0:02:39]} 11. Be2 {[%clk 0:02:54]}  Ne4 {[%clk 0:02:40]} 12. O-O {[%clk 0:02:47]}  Nxc3 {[%clk 0:02:40]} 13. bxc3 {[%clk 0:02:48]}  Qxc3 {[%clk 0:02:37]} 14. Bf3 {[%clk 0:02:35]}  O-O {[%clk 0:02:34]} 15. e4 {[%clk 0:02:35]}  dxe4 {[%clk 0:02:19]} 16. Bxe4 {[%clk 0:02:36]}  Rd8 {[%clk 0:02:17]} 17. Be5 {[%clk 0:02:26]}  Qa5 {[%clk 0:01:29]} 18. Qg4 {[%clk 0:01:55]}  f6 {[%clk 0:01:15]} 19. Bxf6 {[%clk 0:01:52]}  Rd7 {[%clk 0:01:15]} 20. Be5 {[%clk 0:01:42]}  Rf7 {[%clk 0:01:10]} 21. Qh5 {[%clk 0:01:40]}  h6 {[%clk 0:00:54]} 22. Bh7+ {[%clk 0:01:35]} 1-0


[Site "https://www.chess.com"]